bitfinex-derivatives/quotes_SOLF0:USTF0_20241016
["timestamp","ask_amount","ask_price","bid_price","bid_amount"]
[1729102924876,3.2306,154.78,154.76,8.94]
[1729102926779,3.23,154.81,154.77,8.94]
[1729102926975,8.94,154.84,154.79,8.94]
[1729102927177,13.72,154.84,154.79,12.16446145]
[1729102927488,3.2298,154.82,154.79,12.16446145]
[1729102928580,3.2298,154.82,154.8,3.2301]
[1729102929178,3.2298,154.82,154.79,12.16446145]
[1729102929380,3.2298,154.82,154.79,15.39466145]
[1729102929778,3.2296,154.83,154.81,3.2298]
[1729102929976,1.3327,154.85,154.82,8.94]
[1729102930174,4.78,154.87,154.82,8.94]
[1729102931485,3.2291,154.85,154.83,3.2293]
[1729102931785,3.2291,154.85,154.82,8.94]
[1729102931981,3.2291,154.85,154.82,12.1695]
[1729102933283,8.94,154.84,154.8,3.23]
[1729102934184,3.2295,154.83,154.8,3.23]
[1729102934684,8.94,154.84,154.79,6.45456145]
[1729102934884,8.94,154.82,154.79,3.22446145]
[1729102935091,8.94,154.82,154.77,13.72]
[1729102935386,12.1697,154.82,154.79,3.2303]
[1729102935585,12.1697,154.82,154.79,6.39417168]
[1729102936081,3.2297,154.82,154.79,6.39417168]
[1729102936283,13.5582,154.83,154.8,3.23]
[1729102936989,13.5582,154.83,154.81,3.2594823]
[1729102937588,13.5582,154.83,154.82,3.15611946]
[1729102937784,13.5582,154.83,154.8,3.23]
[1729102938184,3.2299,154.81,154.79,3.2302]
[1729102938382,3.2299,154.81,154.77,13.72]
[1729102938891,3.2299,154.81,154.79,3.2303]
[1729102939087,3.2299,154.81,154.79,6.39567467]
[1729102940290,3.2299,154.81,154.79,3.16537467]
[1729102940491,3.2299,154.81,154.78,3.2304]
[1729102940992,3.2299,154.81,154.78,6.46231214]
[1729102941194,3.2303,154.8,154.78,3.23191214]
[1729102941396,8.94,154.82,154.77,8.0107]
[1729102941593,8.94,154.82,154.76,8.94]
[1729102941888,8.94,154.79,154.74,13.72]
[1729102942291,3.2308,154.77,154.74,16.9513]
[1729102943595,8.94,154.8,154.74,13.72]
[1729102944385,3.2306,154.78,154.75,3.231]
[1729102951800,8.94,154.79,154.74,13.72]
[1729102952003,3.2309,154.77,154.74,8.0113]
[1729102954208,8.94,154.79,154.74,4.78]
[1729102954800,8.94,154.77,154.71,11.6145]
[1729102955000,8.94,154.76,154.71,12.1719]
[1729102955195,8.94,154.76,154.71,3.2319]
[1729102955394,8.94,154.74,154.7,3.21430879]
[1729102955597,8.94,154.74,154.69,101.44134515]
[1729102955907,4.78,154.75,154.69,3.24793228]
[1729102956105,8.94,154.74,154.69,3.2322]
[1729102956304,8.94,154.74,154.69,6.48917854]
[1729102956499,8.94,154.74,154.69,3.2322]
[1729102957095,8.94,154.74,154.69,6.50597875]
[1729102957299,3.2317,154.73,154.69,6.50597875]
[1729102958207,8.94,154.73,154.69,6.50597875]
[1729102958998,8.94,154.7,154.63,1.3597]
[1729102959199,8.94,154.7,154.64,13.72]
[1729102959409,8.94,154.7,154.65,8.94]
[1729102959611,10.3626,154.72,154.65,8.94]
[1729102960510,19.39,154.87,154.71,8.94]
[1729102960807,8.94,154.81,154.75,8.94]
[1729102961508,12.1699,154.81,154.77,3.2306]
[1729102961813,4.0713,154.84,154.8,8.94]
[1729102962114,8.8513,154.84,154.8,8.94]
[1729102962408,10.7626,154.84,154.81,8.94]
[1729102962611,1.4226,154.84,154.82,8.94]
[1729102963107,2.9139,154.88,154.83,8.94]
[1729102963407,2.9139,154.88,154.85,8.94]
[1729102963606,6.1424,154.88,154.85,8.94]
[1729102964004,6.1424,154.88,154.84,8.94]
[1729102964313,6.1424,154.88,154.82,13.94]
[1729102964509,6.1424,154.88,154.84,3.2292]
[1729102964713,6.1424,154.88,154.84,6.40106013]
[1729102965410,2.9139,154.88,154.84,3.17186013]
[1729102965611,3.2291,154.85,154.78,18.72]
[1729102966116,3.2291,154.85,154.81,3.2297]
[1729102966412,3.2296,154.83,154.78,4.78]
[1729102966612,3.2296,154.83,154.79,3.2302]
[1729102967017,3.2293,154.84,154.78,4.78]
[1729102967213,4.78,154.85,154.78,4.78]
[1729102967709,3.2295,154.83,154.78,4.78]
[1729102967910,4.78,154.85,154.78,4.78]
[1729102968118,8.0091,154.85,154.82,3.2296]
[1729102970008,4.78,154.85,154.77,4.78]
[1729102970315,3.2293,154.84,154.81,3.2298]
[1729102971814,3.2292,154.85,154.77,4.78]
[1729102972119,13.94,154.86,154.77,4.78]
[1729102972320,18.72,154.86,154.77,4.78]
[1729102973019,3.2293,154.84,154.81,3.2298]
[1729102974220,3.2291,154.85,154.82,3.2297]
[1729102974424,18.72,154.86,154.77,4.78]
[1729102974720,3.2293,154.84,154.81,3.2298]
[1729102974918,18.72,154.86,154.77,4.78]
[1729102975314,3.2293,154.84,154.79,3.2301]
[1729102975515,3.2293,154.84,154.77,4.78]
[1729102976121,3.2292,154.85,154.77,4.78]
[1729102976314,18.72,154.86,154.77,4.78]
[1729102976620,18.72,154.86,154.8,3.23]
[1729102976914,3.2294,154.84,154.8,3.23]
[1729102977823,18.72,154.86,154.8,3.23]
[1729102977824,3.2295,154.83,154.8,3.23]
[1729102978915,3.2294,154.84,154.79,3.2301]
[1729102979119,3.2294,154.84,154.77,4.78]
[1729102979424,3.2294,154.84,154.81,3.2297]
[1729102979722,3.2292,154.85,154.81,3.2297]
[1729102979916,4.78,154.86,154.81,3.2297]
[1729102981218,2.9139,154.88,154.81,3.2297]
[1729102981219,3.2283,154.89,154.85,3.2289]
[1729102981523,1.4206,154.92,154.85,3.2561519]
[1729102981717,1.4206,154.92,154.82,13.94]
[1729102981915,1.4206,154.92,154.84,13.94]
[1729102982125,8.40544961,154.93,154.86,13.94]
[1729102982523,11.63294961,154.93,154.9,3.228]
[1729102982916,8.40544961,154.93,154.85,1.4619]
[1729102983116,3.2279,154.91,154.86,4.9]
[1729102983324,8.40544961,154.93,154.86,4.9]
[1729102983624,8.40544961,154.93,154.91,3.2277]
[1729102983922,8.40544961,154.93,154.87,13.94]
[1729102984426,8.40544961,154.93,154.89,13.94]
[1729102985126,8.40544961,154.93,154.91,13.94]
[1729102985323,8.40544961,154.93,154.92,3.2276]
[1729102986220,10.82426312,154.94,154.93,3.2274]
[1729102986421,10.82426312,154.94,154.93,17.1674]
[1729102987128,10.82426312,154.94,154.93,20.45857833]
[1729102988219,10.82426312,154.94,154.93,3.2274]
[1729102988927,10.82426312,154.94,154.93,6.38175515]
[1729102989514,10.82426312,154.94,154.93,3.15435515]
[1729102989725,10.82426312,154.94,154.87,13.94]
[1729102989931,14.05146312,154.94,154.89,4.9]
[1729102990226,14.05146312,154.94,154.9,3.2278]
[1729102992223,10.82426312,154.94,154.89,4.9]
[1729102994527,14.05156312,154.94,154.89,4.9]
[1729102995427,14.05156312,154.94,154.91,3.2278]
[1729102996631,10.82426312,154.94,154.89,18.84]
[1729102997627,10.82426312,154.94,154.93,3.2274]
[1729102998026,10.82426312,154.94,154.92,3.2275]
[1729102998226,10.82426312,154.94,154.89,4.9]
[1729102998728,14.05146312,154.94,154.91,3.2277]
[1729102999128,3.2274,154.93,154.9,3.2279]
[1729102999933,14.05156312,154.94,154.91,3.2278]
[1729103000529,10.82426312,154.94,154.9,3.2279]
[1729103000729,10.82426312,154.94,154.89,18.84]
[1729103000937,7.11656312,154.94,154.91,13.94]
[1729103001130,7.11656312,154.94,154.93,3.2274]
[1729103001931,7.11656312,154.94,154.93,22.0674]
[1729103002230,4.01656312,154.94,154.93,22.0674]
[1729103002433,4.01656312,154.94,154.93,25.28293059]
[1729103003228,9.27268692,154.96,154.93,22.05553059]
[1729103003432,9.27268692,154.96,154.95,17.167]
[1729103007426,9.12499114,154.99,154.95,13.94]
[1729103007730,9.12499114,154.99,154.93,4.9]
[1729103007731,9.12499114,154.99,154.97,13.94]
[1729103007928,9.12499114,154.99,154.97,22.0665]
[1729103008330,7.9397512,154.98,154.97,22.0665]
[1729103008735,7.9397512,154.98,154.97,25.23561859]
[1729103009832,9.12499114,154.99,154.97,22.08967741]
[1729103010042,9.12499114,154.99,154.98,3.2263]
[1729103010238,6.12499114,154.99,154.98,3.2263]
[1729103010833,6.12499114,154.99,154.98,6.44823548]
[1729103011436,3.12499114,154.99,154.98,3.2263]
[1729103011844,3.12499114,154.99,154.98,3.27645161]
[1729103012041,3.12499114,154.99,154.98,4.96]
[1729103012238,3.12499114,154.99,154.98,8.26205264]
[1729103013341,3.12499114,154.99,154.98,11.48835264]
[1729103014631,2.6662186,155.02,154.98,11.48835264]
[1729103014632,2.6662186,155.02,155.01,3.2257]
[1729103014838,2.6662186,155.02,155.01,20.37355575]
[1729103015743,2.6662186,155.02,154.88,2.98619775]
[1729103015942,13.94,155.0,154.97,3.2491615]
[1729103016938,3.2267,154.97,154.92,3.2275]
[1729103017133,3.2267,154.97,154.92,6.51020123]
[1729103017338,13.94,155.0,154.92,3.2275]
[1729103017844,3.2269,154.96,154.92,3.19498194]
[1729103018042,13.94,155.0,154.91,4.96]
[1729103018537,13.94,155.0,154.91,8.25753611]
[1729103018842,2.6662186,155.02,154.91,3.29753611]
[1729103018843,3.2276,154.92,154.91,3.29753611]
[1729103019050,3.2276,154.92,154.9,4.96]
[1729103019344,3.2276,154.92,154.89,4.96]
[1729103019542,3.2276,154.92,154.89,8.13448015]
[1729103019845,3.228,154.9,154.89,3.17448015]
[1729103020047,3.228,154.9,154.85,13.94]
[1729103020048,13.94,154.93,154.85,4.96]
[1729103021147,4.1957,154.92,154.85,4.96]
[1729103021534,3.2286,154.88,154.85,4.96]
[1729103021936,4.1957,154.92,154.85,4.96]
[1729103022138,4.1957,154.92,154.86,17.1688]
[1729103023143,3.2279,154.91,154.86,17.1688]
[1729103023343,4.1957,154.92,154.86,13.94]
[1729103023748,2.7902,154.92,154.86,13.94]
[1729103024252,4.96,154.96,154.88,13.94]
[1729103024553,7.7009,154.99,154.9,13.94]
[1729103024754,3.2263,154.98,154.92,13.94]
[1729103025051,3.2263,154.98,154.93,4.96]
[1729103025648,3.2263,154.98,154.93,8.1873]
[1729103025853,3.2266,154.97,154.93,8.1873]
[1729103026548,3.2264,154.98,154.93,8.1873]
[1729103027952,3.2264,154.98,154.94,3.2271]
[1729103028951,2.7409,154.99,154.93,4.96]
[1729103029151,3.2269,154.96,154.93,4.96]
[1729103030852,3.2269,154.96,154.93,8.1874]
[1729103031860,2.7409,154.99,154.9,17.08847491]
[1729103031861,3.2271,154.95,154.92,4.96]
[1729103032566,3.2271,154.95,154.91,3.2278]
[1729103032752,13.94,154.98,154.91,4.96]
[1729103033257,13.94,154.98,154.91,8.17393998]
[1729103033659,3.2268,154.96,154.93,3.2274]
[1729103034858,3.2268,154.96,154.91,8.17393998]
[1729103035160,3.2268,154.96,154.92,3.2275]
[1729103038865,3.2268,154.96,154.93,3.2274]
[1729103039663,2.7409,154.99,154.91,8.17393998]
[1729103039858,3.2266,154.97,154.94,3.2271]
[1729103040665,2.7409,154.99,154.91,8.17393998]
[1729103040871,3.2265,154.98,154.95,3.2269]
[1729103041269,2.7409,154.99,154.95,3.2269]
[1729103041470,3.2266,154.97,154.95,3.2269]
[1729103044577,2.7409,154.99,154.93,13.94]
[1729103044773,3.0240351,155.04,154.95,13.94]
[1729103044977,1.4504,155.03,154.95,19.04]
[1729103045172,3.2258,155.01,154.97,17.1665]
[1729103045372,1.4504,155.03,154.97,13.94]
[1729103046274,5.8917186,155.02,154.97,13.94]
[1729103046476,2.6662186,155.02,154.95,19.04]
[1729103046772,3.2264,154.98,154.95,8.3268]
[1729103046972,3.2264,154.98,154.95,5.1]
[1729103047170,3.2264,154.98,154.95,8.3269]
[1729103049081,3.2262,154.99,154.96,3.2267]
[1729103052390,3.2261,155.0,154.97,3.2265]
[1729103052790,3.2265,154.98,154.95,22.2669]
[1729103052986,2.6662186,155.02,154.95,5.1]
[1729103053386,19.04,155.01,154.92,13.94]
[1729103053592,13.94,154.99,154.91,8.31393998]
[1729103053791,2.8601,154.98,154.91,5.1]
[1729103054087,2.8601,154.98,154.92,3.2275]
[1729103054289,1.414,154.97,154.92,6.46036488]
[1729103054486,1.414,154.97,154.92,3.2275]
[1729103054692,3.2271,154.95,154.93,3.2274]
[1729103055383,3.2269,154.96,154.94,3.2271]
[1729103055592,1.414,154.97,154.91,8.26864005]
[1729103055891,3.2261,155.0,154.97,3.2264]
[1729103056091,9.1802186,155.02,154.97,3.2264]
[1729103056691,3.2261,155.0,154.97,3.2264]
[1729103057287,9.1802186,155.02,154.97,3.2264]
[1729103057487,9.1802186,155.02,154.95,3.2268]
[1729103057488,3.2263,154.98,154.95,3.2268]
[1729103058387,3.2263,154.98,154.96,3.2267]
[1729103062994,3.2262,154.99,154.96,3.2267]
[1729103065192,9.1802186,155.02,154.95,5.1]
[1729103065398,9.1802186,155.02,154.95,8.3269]
[1729103065895,8.92,155.0,154.94,8.92]
[1729103066092,8.92,154.99,154.93,8.92]
[1729103066295,8.92,154.99,154.93,14.02]
[1729103066495,3.2269,154.96,154.93,17.2472]
[1729103066697,3.2269,154.96,154.93,14.02]
[1729103067403,8.92,154.99,154.93,14.02]
[1729103067404,3.2271,154.95,154.93,14.02]
[1729103067803,8.92,154.97,154.91,17.18864005]
[1729103068098,9.1802186,155.02,154.91,11.49634005]
[1729103068099,3.2273,154.94,154.91,11.49634005]
[1729103068291,3.2273,154.94,154.91,8.26864005]
[1729103068599,3.227,154.95,154.92,3.2276]
[1729103069503,3.2273,154.94,154.91,11.49644005]
[1729103069702,3.2273,154.94,154.91,6.39644005]
[1729103069904,5.0,154.98,154.91,3.16864005]
[1729103070100,18.95,154.98,154.87,18.1876]
[1729103070297,2.6921,154.97,154.88,5.0]
[1729103070505,2.6921,154.97,154.87,18.95]
[1729103070704,3.2279,154.91,154.87,18.95]
[1729103071196,3.2279,154.91,154.88,3.2284]
[1729103071602,1.329,154.96,154.88,3.2284]
[1729103072103,3.228,154.91,154.88,3.2284]
[1729103072402,1.329,154.96,154.88,3.2284]
[1729103072606,15.279,154.96,154.88,3.2284]
[1729103073401,3.228,154.91,154.88,3.2284]
[1729103075003,3.228,154.9,154.88,3.2284]
[1729103075302,13.95,154.93,154.85,8.229]
[1729103075707,13.95,154.93,154.85,3.229]
[1729103076306,3.2279,154.91,154.85,3.229]
[1729103076502,13.95,154.93,154.85,3.229]
[1729103077810,3.2286,154.88,154.85,3.229]
[1729103082410,13.95,154.91,154.83,13.95]
[1729103082616,2.7492,154.9,154.83,5.0]
[1729103083107,3.2284,154.88,154.83,8.2293]
[1729103083309,2.7492,154.9,154.83,5.0]
[1729103084519,3.2287,154.87,154.84,3.2291]
[1729103085715,2.7492,154.9,154.83,5.0]
[1729103085917,3.2289,154.86,154.83,8.2294]
[1729103086311,7.7492,154.9,154.83,5.0]
[1729103086511,3.2287,154.87,154.84,3.2291]
[1729103088520,7.7492,154.9,154.83,5.0]
[1729103088712,13.95,154.89,154.81,3.21594427]
[1729103088918,13.95,154.89,154.8,5.0]
[1729103089113,13.95,154.89,154.8,8.20559178]
[1729103089918,8.93,154.87,154.82,3.2295]
[1729103090519,3.229,154.86,154.83,12.1594]
[1729103091125,3.2288,154.87,154.84,3.2292]
[1729103091318,8.93,154.88,154.84,3.2292]
[1729103091825,3.229,154.86,154.84,3.2292]
[1729103094632,4.0898,154.9,154.85,8.93]
[1729103094827,2.7492,154.9,154.87,8.93]
[1729103095022,1.3388,154.9,154.87,8.93]
[1729103095327,13.93,154.92,154.87,8.93]
[1729103095629,13.93,154.92,154.88,3.2283]
[1729103095924,13.93,154.92,154.88,6.50652268]
[1729103096130,13.93,154.92,154.88,3.2283]
[1729103096624,13.93,154.92,154.88,6.38836973]
[1729103096825,3.2281,154.9,154.88,6.38836973]
[1729103098133,3.2282,154.89,154.88,3.16006973]
[1729103098346,3.2282,154.89,154.87,8.93]
[1729103099020,3.2282,154.89,154.87,12.1585]
[1729103099222,3.2281,154.9,154.87,12.1585]
[1729103101229,13.93,154.92,154.87,12.1585]
[1729103101430,3.2282,154.9,154.87,12.1585]
[1729103102028,3.2277,154.92,154.89,12.158]
[1729103102222,3.2277,154.92,154.89,15.38404597]
[1729103102622,8.93,154.94,154.89,12.15604597]
[1729103102827,8.93,154.96,154.9,8.93]
[1729103103335,3.2271,154.95,154.92,3.2274]
[1729103104034,3.2271,154.95,154.92,6.50855442]
[1729103104833,8.93,154.94,154.92,3.28115442]
[1729103105039,3.2274,154.93,154.9,3.2279]
[1729103105536,3.228,154.91,154.9,3.14879774]
[1729103105733,3.228,154.91,154.88,3.2283]
[1729103106033,3.228,154.91,154.87,13.83]
[1729103106238,3.228,154.91,154.88,3.2284]
[1729103106431,3.228,154.91,154.88,6.40411493]
[1729103107834,8.93,154.93,154.88,6.40411493]
[1729103108827,3.2279,154.91,154.88,6.40411493]
[1729103110037,8.93,154.93,154.88,3.17571493]
[1729103110331,8.93,154.93,154.87,13.83]
[1729103110737,3.2278,154.91,154.88,3.2282]
[1729103111035,3.2278,154.91,154.88,6.40218321]
[1729103112927,3.2282,154.89,154.88,3.17398321]
[1729103113232,13.83,154.89,154.73,8.95859326]
[1729103113434,3.2301,154.8,154.77,3.2305]
[1729103113637,8.93,154.83,154.77,3.2305]
[1729103113833,8.93,154.83,154.76,8.93]
[1729103114035,3.23,154.81,154.78,3.2304]
[1729103115537,8.93,154.83,154.78,8.93]
[1729103115732,8.93,154.83,154.79,3.2302]
[1729103115931,4.9,154.85,154.79,3.2302]
[1729103116330,3.2302,154.8,154.76,3.2309]
[1729103117832,3.2302,154.8,154.74,4.9]
[1729103118038,13.96,154.82,154.74,4.9]
[1729103118534,13.96,154.82,154.73,8.19857972]
[1729103118735,3.2305,154.79,154.75,3.231]
[1729103118935,7.7431,154.81,154.73,8.06449153]
[1729103119438,3.2306,154.78,154.74,3.2312]
[1729103119638,3.2306,154.78,154.73,8.06449153]
[1729103120445,3.2306,154.78,154.75,3.2311]
[1729103120844,7.7431,154.81,154.75,3.2311]
[1729103121141,3.2304,154.79,154.75,3.2311]
[1729103122844,3.2306,154.78,154.75,3.2311]
[1729103123339,3.2304,154.79,154.76,3.2308]
[1729103125538,10.9731,154.81,154.77,3.2306]
[1729103125734,7.7431,154.81,154.77,3.2306]
[1729103126448,3.2301,154.8,154.77,3.2306]
[1729103127440,3.2301,154.8,154.73,8.06449153]
[1729103127645,3.2301,154.8,154.78,3.2305]
[1729103132146,3.2301,154.8,154.77,3.2307]
[1729103132345,7.7431,154.81,154.73,3.16449153]
[1729103132541,7.7431,154.81,154.73,4.86]
[1729103132846,7.7431,154.81,154.76,3.2309]
[1729103133048,3.2305,154.79,154.76,3.2309]
[1729103134636,7.7431,154.81,154.76,3.2309]
[1729103134842,3.2306,154.78,154.76,3.2309]
[1729103136050,3.2306,154.78,154.75,3.231]
[1729103136348,8.94,154.79,154.75,3.231]
[1729103137348,3.2306,154.78,154.75,3.231]
[1729103147758,2.8431,154.81,154.77,3.2306]
[1729103148058,1.4021,154.84,154.79,8.94]
[1729103148059,6.2621,154.84,154.79,8.94]
[1729103148363,3.2296,154.83,154.8,3.23]
[1729103148663,3.2296,154.83,154.81,3.2110072]
[1729103151560,12.1696,154.83,154.81,3.2110072]
[1729103153054,12.1696,154.83,154.81,6.4409072]
[1729103153857,8.94,154.83,154.82,3.2297]
[1729103154257,8.94,154.83,154.81,3.2110072]
[1729103154459,8.94,154.83,154.81,3.2298]
[1729103154663,8.94,154.83,154.81,6.46042015]
[1729103155457,8.94,154.83,154.81,3.23062015]
[1729103156663,12.1696,154.83,154.81,3.2298]
[1729103156866,12.1696,154.83,154.81,6.52728062]
[1729103158266,8.94,154.83,154.81,3.29748062]
[1729103158461,12.1694,154.84,154.82,3.2297]
[1729103158767,3.2295,154.83,154.79,8.94]
[1729103160359,3.2295,154.83,154.81,3.2298]
[1729103163367,12.1695,154.83,154.81,3.2298]
[1729103165768,3.2295,154.83,154.81,3.2298]
[1729103165965,12.1693,154.84,154.82,3.2295]
[1729103166267,8.94,154.84,154.78,8.94]
[1729103167168,3.2296,154.83,154.78,8.94]
[1729103167871,3.23,154.81,154.76,8.09848672]
[1729103168073,8.94,154.8,154.76,3.23848672]
[1729103168366,3.2312,154.75,154.68,1.4354]
[1729103168564,8.94,154.75,154.69,16.5862]
[1729103168768,8.94,154.75,154.68,1.4354]
[1729103168769,8.94,154.73,154.68,8.94]
[1729103168968,12.1719,154.72,154.69,3.2323]
[1729103169668,8.94,154.72,154.66,13.74]
[1729103169965,8.94,154.74,154.69,8.94]
[1729103170165,12.1711,154.76,154.71,8.94]
[1729103170369,12.1711,154.76,154.72,3.2316]
[1729103170566,8.0307,154.78,154.72,8.94]
[1729103170874,16.9707,154.78,154.72,8.94]
[1729103171066,16.9707,154.78,154.74,3.2312]
[1729103171272,16.9707,154.78,154.74,6.475238]
[1729103171477,16.9707,154.78,154.74,3.2312]
[1729103171972,13.74,154.78,154.74,6.45067909]
[1729103172177,3.2308,154.77,154.74,6.45067909]
[1729103173276,12.1708,154.77,154.74,3.21947909]
[1729103173476,12.1708,154.77,154.73,3.2314]
[1729103173782,12.1708,154.77,154.74,3.24728612]
[1729103173974,12.1708,154.77,154.75,3.17523907]
[1729103174169,12.1708,154.77,154.73,3.2314]
[1729103174376,12.1708,154.77,154.74,3.2313]
[1729103174574,12.1708,154.77,154.75,3.28282501]
[1729103174780,12.1708,154.77,154.74,3.2313]
[1729103175078,12.1708,154.77,154.74,6.44240105]
[1729103175487,3.2309,154.76,154.74,3.21110105]
[1729103175783,3.2309,154.76,154.72,8.94]
[1729103175984,8.94,154.77,154.73,3.2314]
[1729103176181,3.2313,154.75,154.73,3.23597828]
[1729103176384,3.2313,154.75,154.69,8.94]
[1729103176585,8.94,154.74,154.72,3.2317]
[1729103176781,8.94,154.74,154.73,3.23413467]
[1729103178688,3.2313,154.75,154.72,3.2317]
[1729103179091,3.2313,154.75,154.72,6.51171809]
[1729103179387,3.2313,154.75,154.72,3.2317]
[1729103179782,3.231,154.76,154.73,3.2314]
[1729103180293,3.2312,154.75,154.72,12.1717]
[1729103180789,3.2312,154.75,154.72,15.38903229]
[1729103181288,3.2312,154.75,154.72,6.44903229]
[1729103183887,12.1712,154.75,154.72,6.44903229]
[1729103185493,8.94,154.74,154.68,8.94]
[1729103185790,8.94,154.73,154.68,3.18566627]
[1729103185990,8.94,154.71,154.69,3.2323]
[1729103186191,8.94,154.71,154.7,3.20343802]
[1729103186485,8.94,154.71,154.69,3.2323]
[1729103186686,4.8,154.74,154.53,18.83349573]
[1729103186687,12.1723,154.7,154.67,3.2327]
[1729103186993,12.1723,154.7,154.68,3.16354234]
[1729103188091,3.2324,154.69,154.68,3.16354234]
[1729103188295,3.2324,154.69,154.64,8.94]
[1729103188686,3.2324,154.69,154.66,3.233]
[1729103188885,3.2324,154.69,154.66,6.39686554]
[1729103190285,3.2325,154.69,154.66,6.39686554]
[1729103191892,12.1721,154.71,154.68,3.2326]
[1729103192192,12.1721,154.71,154.66,12.10386554]
[1729103192585,8.94,154.71,154.66,12.10386554]
[1729103192782,3.2323,154.7,154.66,12.10386554]
[1729103193185,3.2323,154.7,154.67,3.2327]
[1729103193795,3.2323,154.7,154.68,3.2326]
[1729103194593,8.94,154.71,154.66,12.10386554]
[1729103194800,12.172,154.71,154.66,12.10386554]
[1729103195297,12.172,154.71,154.68,3.2325]
[1729103197600,3.232,154.71,154.69,3.2323]
[1729103200494,12.1723,154.7,154.68,3.2325]
[1729103200994,12.1723,154.7,154.66,3.16386554]
[1729103200995,3.2312,154.75,154.73,3.2315]
[1729103201198,8.0312,154.75,154.73,3.2315]
[1729103201701,3.2314,154.74,154.72,6.50912728]
[1729103206102,3.2314,154.74,154.72,3.27752728]
[1729103206299,3.2314,154.74,154.71,3.2319]
[1729103206497,3.2314,154.74,154.72,3.29875916]
[1729103206893,3.2312,154.75,154.72,3.2316]
[1729103207098,13.74,154.76,154.73,3.31007177]
[1729103207298,13.74,154.76,154.71,8.94]
[1729103207596,3.2312,154.75,154.72,3.2316]
[1729103207802,3.2312,154.75,154.73,3.21957084]
[1729103210304,13.74,154.76,154.73,3.21957084]
[1729103210503,3.2313,154.74,154.73,3.21957084]
[1729103210902,3.2313,154.74,154.72,3.2316]
[1729103211307,3.2313,154.74,154.73,3.24715615]
[1729103212205,3.2313,154.75,154.72,3.2316]
[1729103212616,11.7731,154.78,154.72,6.52120124]
[1729103212813,4.8,154.77,154.72,3.2316]
[1729103213007,4.8,154.77,154.72,6.49308775]
[1729103214104,8.94,154.76,154.72,6.49308775]
[1729103214502,3.2314,154.74,154.72,6.49308775]
[1729103217613,3.2311,154.75,154.73,3.2315]
[1729103217822,4.8,154.77,154.73,3.2315]
[1729103218211,3.2311,154.76,154.73,3.2315]
[1729103219413,3.2311,154.76,154.74,3.2313]
[1729103219807,3.2308,154.77,154.75,3.231]
[1729103220419,3.2309,154.76,154.75,3.28551657]
[1729103220717,3.2309,154.76,154.74,3.2312]
[1729103220920,3.2309,154.76,154.74,6.45854868]
[1729103221213,3.2308,154.77,154.75,3.2311]
[1729103221408,3.2308,154.77,154.74,3.22734868]
[1729103221610,3.2308,154.77,154.73,8.94]
[1729103222011,3.2308,154.77,154.74,3.2312]
[1729103224822,4.8,154.79,154.73,12.22820678]
[1729103225023,3.2306,154.78,154.75,12.171]
[1729103225713,3.2306,154.78,154.75,3.231]
[1729103225919,3.2307,154.77,154.75,3.231]
[1729103226113,8.94,154.77,154.73,6.51960678]
[1729103226615,3.231,154.76,154.73,3.28820678]
[1729103226815,3.231,154.76,154.74,3.2313]
[1729103227014,3.231,154.76,154.75,3.25460652]